bitfinex-derivatives/quotes_BTCF0:USTF0_20241224
["timestamp","ask_amount","ask_price","bid_price","bid_amount"]
[1735022477520,0.0406,94219.0,94211.0,0.02092]
[1735022477717,0.0406,94219.0,94211.0,0.02096]
[1735022478024,0.05314,94218.0,94211.0,0.02096]
[1735022478420,0.05141007,94219.0,94211.0,0.005]
[1735022478421,0.053141,94217.0,94211.0,0.005]
[1735022478720,0.053141,94217.0,94211.0,0.02096]
[1735022479214,0.053141,94217.0,94211.0,0.01896]
[1735022479413,0.053141,94217.0,94211.0,0.02096]
[1735022479921,0.05141007,94219.0,94211.0,0.074103]
[1735022479922,0.01181007,94219.0,94211.0,0.074103]
[1735022480135,0.001,94218.0,94211.0,0.075103]
[1735022480421,0.001,94218.0,94211.0,0.077103]
[1735022480621,0.001,94217.0,94211.0,0.074103]
[1735022481118,0.001,94218.0,94211.0,0.074103]
[1735022482223,0.0502875,94223.0,94211.0,0.074103]
[1735022482224,0.001,94217.0,94211.0,0.074103]
[1735022482624,0.001,94217.0,94211.0,0.072103]
[1735022482817,0.001,94217.0,94211.0,0.074103]
[1735022483424,0.054141,94217.0,94211.0,0.01896]
[1735022483620,0.053141,94217.0,94211.0,0.01796]
[1735022483830,0.053141,94217.0,94211.0,0.02096]
[1735022484324,0.054141,94217.0,94211.0,0.02096]
[1735022485112,0.053141,94215.0,94211.0,0.02096]
[1735022485322,0.053142,94214.0,94211.0,0.02096]
[1735022485823,0.001,94217.0,94211.0,0.02096]
[1735022486919,0.16136158,94221.0,94211.0,0.02096]
[1735022486920,0.001,94214.0,94211.0,0.02096]
[1735022487321,0.053138,94221.0,94211.0,0.01796]
[1735022487513,0.001,94217.0,94211.0,0.02096]
[1735022487919,0.053138,94221.0,94211.0,0.01596]
[1735022488221,0.001,94214.0,94211.0,0.02096]
[1735022489524,0.001,94217.0,94211.0,0.02096]
[1735022489721,0.001,94217.0,94211.0,0.01896]
[1735022489918,0.001,94214.0,94211.0,0.01896]
[1735022490122,0.001,94214.0,94211.0,0.01596]
[1735022490123,0.002,94214.0,94211.0,0.01596]
[1735022490625,0.001,94214.0,94211.0,0.01596]
[1735022491226,0.001,94214.0,94211.0,0.01696]
[1735022491528,0.001,94217.0,94211.0,0.01696]
[1735022492027,0.001,94217.0,94215.0,0.3608]
[1735022492220,0.053138,94221.0,94215.0,0.3608]
[1735022493321,0.002,94217.0,94215.0,0.3608]
[1735022494423,0.003,94217.0,94215.0,0.3608]
[1735022494828,0.001,94217.0,94215.0,0.3608]
[1735022495224,0.001,94217.0,94216.0,0.0377]
[1735022495648,0.003,94217.0,94216.0,0.0377]
[1735022496129,0.34711266,94291.0,94216.0,0.0377]
[1735022496130,0.09471955,94232.0,94216.0,0.0377]
[1735022496327,0.09471955,94232.0,94231.0,0.3608]
[1735022496633,0.09471955,94232.0,94231.0,0.413932]
[1735022497225,0.003,94232.0,94231.0,0.3608]
[1735022497432,0.003,94232.0,94231.0,0.3987]
[1735022497726,0.1348888,94241.0,94231.0,0.41462]
[1735022498029,0.011,94232.0,94231.0,0.467752]
[1735022498227,0.09471955,94242.0,94231.0,0.41462]
[1735022498532,0.09471955,94242.0,94239.0,0.3608]
[1735022499027,0.09471955,94242.0,94239.0,0.413927]
[1735022499531,0.09471955,94242.0,94240.0,0.04]
[1735022499836,0.004,94241.0,94240.0,0.04]
[1735022500332,0.008,94242.0,94240.0,0.04]
[1735022500830,0.009,94242.0,94240.0,0.041]
[1735022501030,0.012,94242.0,94240.0,0.041]
[1735022501431,0.012,94242.0,94241.0,0.0388]
[1735022502830,0.09471955,94247.0,94241.0,0.0398]
[1735022503031,0.004,94242.0,94241.0,0.0398]
[1735022503826,0.053121,94251.0,94241.0,0.0398]
[1735022504031,0.053121,94251.0,94248.0,0.3608]
[1735022505133,0.059121,94251.0,94248.0,0.3618]
[1735022505635,0.006,94251.0,94248.0,0.3618]
[1735022506740,0.015,94251.0,94248.0,0.3628]
[1735022507127,0.015,94251.0,94249.0,0.053122]
[1735022508339,0.015,94251.0,94249.0,0.055122]
[1735022511533,0.015,94251.0,94249.0,0.002]
[1735022511741,0.068121,94251.0,94249.0,0.002]
[1735022513442,0.1154,94250.0,94249.0,0.002]
[1735022514434,0.1214,94250.0,94249.0,0.002]
[1735022515835,0.1304,94250.0,94249.0,0.002]
[1735022524351,0.015,94250.0,94249.0,0.002]
[1735022525138,0.015,94250.0,94249.0,0.0423]
[1735022534051,0.015,94250.0,94249.0,0.4031]
[1735022536542,0.015,94250.0,94249.0,0.3628]
[1735022536955,0.015,94250.0,94249.0,0.002]
[1735022537655,0.015,94250.0,94249.0,0.25661562]
[1735022538761,0.015,94250.0,94249.0,0.002]
[1735022542260,0.17326865,94250.0,94249.0,0.002]
[1735022543261,0.06665088,94250.0,94249.0,0.002]
[1735022544863,0.015,94250.0,94249.0,0.002]
[1735022545955,0.17264888,94250.0,94249.0,0.002]
[1735022547562,0.015,94250.0,94249.0,0.002]
[1735022563059,0.17264888,94250.0,94249.0,0.002]
[1735022565963,0.06664829,94250.0,94249.0,0.002]
[1735022567463,0.015,94250.0,94249.0,0.002]
[1735022568873,0.06664829,94250.0,94249.0,0.002]
[1735022586871,0.015,94250.0,94249.0,0.002]
[1735022591078,0.06664681,94250.0,94249.0,0.002]
[1735022592973,0.42744681,94250.0,94249.0,0.002]
[1735022610789,0.06664681,94250.0,94249.0,0.002]
[1735022611113,0.12692239,94254.0,94249.0,0.002]
[1735022612085,0.12692239,94254.0,94249.0,0.001]
[1735022612391,0.09482395,94252.0,94249.0,0.002]
[1735022612875,0.14794495,94252.0,94249.0,0.002]
[1735022613297,0.053121,94251.0,94249.0,0.002]
[1735022613486,0.053121,94251.0,94249.0,0.01244676]
[1735022613988,0.053121,94251.0,94250.0,0.55355683]
[1735022614189,0.053121,94251.0,94250.0,0.59265683]
[1735022615378,0.054121,94251.0,94250.0,0.59265683]
[1735022615578,0.054121,94251.0,94250.0,0.0391]
[1735022617991,0.054121,94251.0,94250.0,0.05502]
[1735022618393,0.054121,94251.0,94250.0,0.0391]
[1735022618587,0.054121,94251.0,94250.0,0.05502]
[1735022619583,0.054121,94251.0,94250.0,0.05602]
[1735022619786,0.001,94251.0,94250.0,0.05602]
[1735022619984,0.001,94251.0,94250.0,0.05502]
[1735022620204,0.001,94251.0,94250.0,0.05602]
[1735022620995,0.053119,94256.0,94250.0,0.05602]
[1735022621195,0.053119,94256.0,94255.0,0.3608]
[1735022622792,0.054119,94256.0,94255.0,0.3608]
[1735022624485,0.055119,94256.0,94255.0,0.3608]
[1735022624692,0.055119,94256.0,94255.0,0.55135117]
[1735022624890,0.002,94256.0,94255.0,0.55135117]
[1735022627289,0.002,94256.0,94255.0,0.3608]
[1735022627683,0.001,94256.0,94255.0,0.3608]
[1735022627888,0.002,94256.0,94255.0,0.3608]
[1735022631291,0.002,94256.0,94255.0,0.61489487]
[1735022633100,0.002,94256.0,94255.0,0.72884615]
[1735022633305,0.09482395,94274.0,94265.0,0.053113]
[1735022633491,0.10538692,94274.0,94265.0,0.053113]
[1735022634199,0.09482395,94273.0,94265.0,0.053113]
[1735022634994,0.09482395,94273.0,94269.0,0.053111]
[1735022635299,0.09482395,94273.0,94272.0,0.3608]
[1735022635597,0.10382395,94273.0,94272.0,0.3608]
[1735022635793,0.009,94273.0,94272.0,0.3608]
[1735022636891,0.005,94273.0,94272.0,0.3608]
[1735022637096,0.006,94273.0,94272.0,0.3608]
[1735022637791,0.003,94273.0,94272.0,0.37672]
[1735022638296,0.004,94273.0,94272.0,0.37672]
[1735022638488,0.004,94273.0,94272.0,0.3608]
[1735022638694,0.004,94273.0,94272.0,0.37672]
[1735022643510,0.004,94273.0,94272.0,0.63107418]
[1735022644809,0.004,94273.0,94272.0,0.37672]
[1735022646010,0.004,94273.0,94267.0,0.31764594]
[1735022646011,0.053111,94269.0,94267.0,0.31764594]
[1735022646310,0.053111,94269.0,94254.0,0.3608]
[1735022646311,0.0354,94268.0,94262.0,0.38151083]
[1735022646608,0.413914,94263.0,94262.0,0.26211083]
[1735022647911,0.413914,94263.0,94262.0,0.25434096]
[1735022648703,0.413914,94263.0,94262.0,0.25634096]
[1735022648905,0.413914,94263.0,94262.0,0.002]
[1735022650410,0.42453022,94263.0,94262.0,0.002]
[1735022651605,0.55072179,94263.0,94262.0,0.002]
[1735022653310,0.42453022,94263.0,94262.0,0.002]
[1735022668716,0.55072179,94263.0,94262.0,0.002]
[1735022669828,0.42453022,94263.0,94262.0,0.002]
[1735022676519,0.36783022,94263.0,94262.0,0.002]
[1735022679736,0.36783022,94263.0,94262.0,0.0374]
[1735022682433,0.41946777,94263.0,94262.0,0.0374]
[1735022686632,0.36635377,94263.0,94262.0,0.0374]
[1735022686827,0.18914248,94268.0,94262.0,0.0374]
[1735022687026,0.18914248,94269.0,94262.0,0.3982]
[1735022687226,0.13234248,94269.0,94262.0,0.3982]
[1735022687634,0.053106,94278.0,94262.0,0.3982]
[1735022687934,0.053106,94278.0,94272.0,0.3608]
[1735022688627,0.12644796,94273.0,94272.0,0.3608]
[1735022688937,0.06964796,94273.0,94272.0,0.3608]
[1735022690036,0.002,94273.0,94272.0,0.3608]
[1735022690429,0.004,94273.0,94272.0,0.3608]
[1735022690829,0.004,94273.0,94272.0,0.4315]
[1735022691637,0.004,94273.0,94272.0,0.68580494]
[1735022694430,0.004,94273.0,94272.0,0.6220971]
[1735022695929,0.004,94273.0,94272.0,0.5858971]
[1735022696739,0.004,94273.0,94272.0,0.3953]
[1735022697734,0.004,94273.0,94272.0,0.41122]
[1735022698442,0.004,94273.0,94272.0,0.3953]
[1735022698832,0.004,94273.0,94272.0,0.41122]
[1735022706144,0.004,94273.0,94272.0,0.6018171]
[1735022708940,0.004,94273.0,94272.0,0.41122]
[1735022709646,0.004,94273.0,94272.0,0.37672]
[1735022712239,0.004,94273.0,94272.0,0.01592]
[1735022713535,0.004,94273.0,94270.0,0.66893494]
[1735022713744,0.004,94273.0,94271.0,0.25430494]
[1735022715237,0.002,94273.0,94271.0,0.25430494]
[1735022715437,0.004,94273.0,94271.0,0.25430494]
[1735022716045,0.057109,94273.0,94271.0,0.25430494]
[1735022716247,0.056109,94273.0,94271.0,0.25430494]
[1735022716647,0.05311,94271.0,94270.0,0.3608]
[1735022716844,0.41391,94271.0,94269.0,0.31861847]
[1735022717052,0.41391,94271.0,94269.0,0.26341847]
[1735022717941,0.41591,94271.0,94269.0,0.26341847]
[1735022718363,0.41591,94271.0,94251.0,0.44405366]
[1735022718364,0.053113,94265.0,94262.0,0.19103435]
[1735022718645,0.0701,94264.0,94262.0,0.19103435]
[1735022719242,0.123214,94264.0,94262.0,0.19103435]
[1735022719847,0.123214,94264.0,94260.0,0.19103435]
[1735022719848,0.3608,94263.0,94260.0,0.19103435]
[1735022720246,0.413915,94263.0,94260.0,0.19103435]
[1735022721758,0.413915,94263.0,94255.0,0.19103435]
[1735022722049,0.053115,94262.0,94255.0,0.19103435]
[1735022722236,0.3608,94263.0,94255.0,0.19103435]
[1735022722946,0.3608,94263.0,94255.0,0.19603435]
[1735022722947,0.053118,94256.0,94255.0,0.19603435]
[1735022723653,0.053118,94256.0,94255.0,0.007]
[1735022723855,0.09474691,94259.0,94255.0,0.007]
[1735022724251,0.09474691,94259.0,94255.0,0.005]
[1735022724552,0.09474691,94259.0,94255.0,0.007]
[1735022726952,0.09474691,94260.0,94255.0,0.007]
[1735022727547,0.09474691,94261.0,94255.0,0.007]
[1735022728246,0.09474691,94261.0,94255.0,0.005]
[1735022728445,0.001,94260.0,94255.0,0.005]
[1735022728869,0.001,94260.0,94253.0,0.19103435]
[1735022729050,0.001,94260.0,94251.0,0.19103435]
[1735022729051,0.09574691,94260.0,94251.0,0.19103435]
[1735022729750,0.09474691,94260.0,94251.0,0.19103435]
[1735022730754,0.09574691,94260.0,94251.0,0.19203435]
[1735022731142,0.001,94260.0,94251.0,0.001]
[1735022733255,0.054116,94260.0,94251.0,0.001]
[1735022734346,0.001,94260.0,94251.0,0.001]
[1735022734557,0.053117,94259.0,94251.0,0.001]
[1735022736156,0.053117,94259.0,94248.0,0.24415635]
[1735022736787,0.053117,94259.0,94251.0,0.001]
[1735022736946,0.054117,94259.0,94251.0,0.001]
[1735022737645,0.053117,94259.0,94251.0,0.001]
[1735022738653,0.053117,94259.0,94251.0,0.19203435]
[1735022738891,0.053118,94257.0,94251.0,0.19103435]
[1735022739347,0.003,94259.0,94251.0,0.19103435]
[1735022739549,0.05312,94253.0,94251.0,0.19103435]
[1735022741053,0.09974691,94257.0,94247.0,0.55183435]
[1735022741261,0.053121,94251.0,94247.0,0.55183435]
[1735022741665,0.09974691,94257.0,94247.0,0.55183435]
[1735022741856,0.007,94253.0,94251.0,0.001]
[1735022742560,0.005,94251.0,94248.0,0.19103435]
[1735022742956,0.002,94253.0,94248.0,0.19103435]
[1735022743155,0.009,94253.0,94251.0,0.001]
[1735022743360,0.009,94253.0,94251.0,0.19203435]
[1735022743557,0.001,94253.0,94251.0,0.19103435]
[1735022744363,0.002,94253.0,94251.0,0.19103435]
[1735022745665,0.007,94253.0,94251.0,0.19103435]
[1735022745961,0.007,94253.0,94247.0,0.61623247]
[1735022745962,0.007,94253.0,94250.0,0.25471247]
[1735022746166,0.009,94253.0,94251.0,0.001]
[1735022746567,0.008,94253.0,94251.0,0.001]
[1735022746761,0.01557807,94253.0,94250.0,0.25471247]
[1735022746958,0.005,94253.0,94250.0,0.25471247]
[1735022747260,0.005,94253.0,94247.0,0.3608]
[1735022747464,0.004,94253.0,94247.0,0.3608]
[1735022747655,0.006,94253.0,94247.0,0.3608]
[1735022748371,0.009,94253.0,94251.0,0.001]
[1735022748761,0.002,94253.0,94248.0,0.31852385]
[1735022749063,0.005,94253.0,94248.0,0.31852385]
[1735022749262,0.01781981,94253.0,94248.0,0.31852385]
[1735022749563,0.007,94253.0,94248.0,0.31852385]
[1735022749864,0.001,94253.0,94248.0,0.31852385]
[1735022750062,0.005,94253.0,94249.0,0.31852385]
[1735022751157,0.09488608,94250.0,94249.0,0.31852385]
[1735022752263,0.09488608,94250.0,94249.0,0.54947128]
[1735022752701,0.09888608,94250.0,94249.0,0.54947128]
[1735022753764,0.09988608,94250.0,94249.0,0.54947128]
[1735022753957,0.15810893,94262.0,94260.0,0.053116]
[1735022754174,0.15810893,94262.0,94261.0,0.4649]
[1735022754463,0.15810893,94262.0,94261.0,0.50561871]
[1735022754653,0.15810893,94262.0,94261.0,0.4649]
[1735022755161,0.16210893,94262.0,94261.0,0.4649]
[1735022755359,0.004,94262.0,94261.0,0.69584743]
[1735022755564,0.05311,94271.0,94261.0,0.69584743]
[1735022755869,0.004,94262.0,94261.0,0.69584743]
[1735022756767,0.05311,94271.0,94261.0,0.69584743]
[1735022756967,0.004,94262.0,94261.0,0.69584743]
[1735022757670,0.004,94262.0,94261.0,0.71176743]
[1735022757860,0.004,94262.0,94261.0,0.72246281]
[1735022758264,0.05311,94271.0,94261.0,0.71176743]
[1735022758471,0.05311,94271.0,94262.0,0.01592]
[1735022758959,0.05311,94271.0,94262.0,0.069035]
[1735022759564,0.05311,94271.0,94268.0,0.25437434]
[1735022760973,0.05411,94271.0,94268.0,0.25437434]
[1735022761372,0.05411,94271.0,94268.0,0.61517434]
[1735022762566,0.05411,94271.0,94268.0,0.25437434]
[1735022762771,0.05411,94271.0,94268.0,0.61517434]
[1735022763773,0.05411,94271.0,94268.0,0.3608]
[1735022764873,0.05411,94271.0,94267.0,0.25437434]
[1735022765178,0.05411,94271.0,94268.0,0.3608]
[1735022765674,0.001,94271.0,94268.0,0.3608]
[1735022766172,0.001,94271.0,94266.0,0.25437434]
[1735022766370,0.053112,94268.0,94266.0,0.25437434]
[1735022767673,0.053112,94267.0,94260.0,0.19066262]
[1735022768262,0.053112,94267.0,94266.0,0.001]
[1735022768764,0.053112,94267.0,94260.0,0.19066262]
[1735022769573,0.056112,94267.0,94257.0,0.19066262]
[1735022770368,0.055112,94267.0,94257.0,0.19066262]
[1735022770577,0.055112,94267.0,94266.0,0.001]
[1735022770967,0.055112,94267.0,94257.0,0.29690414]
[1735022771377,0.055112,94267.0,94258.0,0.01592]
[1735022771781,0.053112,94267.0,94258.0,0.01592]
[1735022771963,0.054112,94267.0,94258.0,0.01592]
[1735022772169,0.054112,94267.0,94262.0,0.19066262]
[1735022772574,0.053112,94267.0,94262.0,0.19066262]
[1735022773477,0.054112,94267.0,94262.0,0.19066262]
[1735022774785,0.001,94267.0,94264.0,0.3608]
[1735022775477,0.001,94267.0,94265.0,0.19066262]
[1735022775670,0.001,94267.0,94265.0,0.24377562]
[1735022776180,0.01045893,94274.0,94265.0,0.24377562]
[1735022776482,0.0697,94279.0,94265.0,0.24377562]
[1735022776679,0.0697,94279.0,94266.0,0.25437434]
[1735022777080,0.001,94267.0,94266.0,0.30748634]
[1735022777883,0.001,94267.0,94266.0,0.32340634]
[1735022778075,0.001,94267.0,94266.0,0.069032]
[1735022778479,0.001,94267.0,94266.0,0.053112]
[1735022778672,0.13338096,94279.0,94266.0,0.069032]
[1735022778872,0.09968096,94279.0,94266.0,0.069032]
[1735022779474,0.09868096,94279.0,94266.0,0.069032]
[1735022779784,0.001,94267.0,94266.0,0.069032]
[1735022780877,0.053106,94278.0,94266.0,0.069032]
[1735022781206,0.053106,94278.0,94267.0,0.053112]
[1735022781777,0.053106,94278.0,94272.0,0.3608]
[1735022781976,0.001,94279.0,94272.0,0.3608]
[1735022782177,0.001,94279.0,94273.0,0.0711]
[1735022782377,0.001,94279.0,94273.0,0.1083]
[1735022782599,0.053101,94286.0,94274.0,0.2544198]
[1735022782781,0.053101,94286.0,94280.0,0.3608]
[1735022783977,0.15810893,94291.0,94280.0,0.3618]
[1735022784183,0.004,94286.0,94283.0,0.2544198]
[1735022785688,0.04745768,94292.0,94283.0,0.2544198]
[1735022785899,0.10055568,94292.0,94283.0,0.2544198]
[1735022786098,0.10055568,94292.0,94282.0,0.2544198]
[1735022786307,0.10055568,94292.0,94283.0,0.001]
[1735022786510,0.005,94286.0,94283.0,0.001]
[1735022786911,0.005,94286.0,94282.0,0.2544198]
[1735022787210,0.10055568,94292.0,94282.0,0.2544198]
[1735022787412,0.10155568,94292.0,94283.0,0.19071363]
[1735022788910,0.04845768,94292.0,94283.0,0.19071363]
[1735022789099,0.004,94286.0,94283.0,0.19071363]
[1735022790011,0.053099,94290.0,94283.0,0.19071363]
[1735022790204,0.053099,94290.0,94282.0,0.19071363]
[1735022790711,0.053099,94290.0,94283.0,0.001]
[1735022791302,0.053099,94290.0,94282.0,0.19071363]
[1735022791805,0.053099,94290.0,94280.0,0.3608]
[1735022791806,0.005,94286.0,94285.0,0.19071363]
[1735022792510,0.053099,94290.0,94285.0,0.19071363]
[1735022792699,0.053099,94290.0,94280.0,0.6159398]
[1735022792700,0.053099,94290.0,94282.0,0.19071363]
[1735022793310,0.005,94286.0,94282.0,0.19071363]
[1735022793511,0.005,94286.0,94285.0,0.001]
[1735022793903,0.005,94286.0,94282.0,0.19071363]
[1735022794207,0.005,94286.0,94280.0,0.6152198]
[1735022794712,0.005,94286.0,94285.0,0.001]
[1735022794911,0.0531,94289.0,94285.0,0.001]
[1735022796411,0.005,94286.0,94285.0,0.001]
[1735022796613,0.005,94286.0,94280.0,0.6152198]
[1735022796815,0.005,94286.0,94282.0,0.001]
[1735022797014,0.005,94286.0,94285.0,0.19058897]
[1735022797223,0.005,94286.0,94285.0,0.19158897]
[1735022797717,0.005,94286.0,94285.0,0.19058897]
[1735022798032,0.053101,94288.0,94285.0,0.19058897]
[1735022798409,0.053101,94288.0,94285.0,0.19158897]
[1735022798614,0.053101,94288.0,94285.0,0.001]
[1735022798805,0.005,94286.0,94285.0,0.001]
[1735022799718,0.005,94288.0,94285.0,0.001]
[1735022800017,0.053101,94287.0,94285.0,0.001]
[1735022801805,0.005,94286.0,94285.0,0.001]
[1735022802721,0.058101,94287.0,94285.0,0.001]
[1735022803316,0.053101,94287.0,94285.0,0.001]
[1735022803508,0.005,94286.0,94285.0,0.001]
[1735022804616,0.005,94286.0,94282.0,0.2544198]
[1735022804921,0.053102,94286.0,94285.0,0.001]
[1735022805811,0.057102,94286.0,94285.0,0.001]
[1735022806711,0.057102,94286.0,94284.0,0.2544198]
[1735022806910,0.053102,94286.0,94284.0,0.2544198]
[1735022807111,0.058102,94286.0,94284.0,0.2544198]
[1735022807312,0.058102,94286.0,94285.0,0.001]
[1735022807914,0.058102,94286.0,94284.0,0.2554198]
[1735022808115,0.058102,94286.0,94285.0,0.2544198]
[1735022809025,0.053102,94286.0,94285.0,0.2544198]
[1735022809319,0.058102,94286.0,94285.0,0.2544198]
[1735022809528,0.058102,94286.0,94285.0,0.2554198]
[1735022809823,0.058102,94286.0,94285.0,0.001]
[1735022809824,0.053102,94286.0,94285.0,0.001]
[1735022810024,0.058102,94286.0,94285.0,0.001]
[1735022816831,0.18475998,94286.0,94285.0,0.001]
[1735022821323,0.04722577,94293.0,94291.0,0.053098]
[1735022821625,0.04722577,94293.0,94292.0,0.07671823]
[1735022822526,0.053087,94312.0,94299.0,0.053094]
[1735022822737,0.053087,94312.0,94306.0,0.3608]
[1735022823733,0.053087,94312.0,94311.0,0.25439995]
[1735022824836,0.053087,94312.0,94310.0,0.25439995]
[1735022825553,0.3608,94313.0,94310.0,0.25439995]
[1735022825731,0.01077205,94318.0,94310.0,0.25439995]
[1735022825927,0.053082,94320.0,94315.0,0.3608]
[1735022827531,0.053078,94328.0,94315.0,0.3608]
[1735022827723,0.04778163,94329.0,94318.0,0.07104152]
[1735022828134,0.002,94320.0,94318.0,0.26147248]
[1735022828331,0.002,94320.0,94318.0,0.19043096]
[1735022828930,0.05308,94324.0,94318.0,0.19043096]
[1735022829737,0.05308,94324.0,94320.0,0.19043096]
[1735022830929,0.05308,94324.0,94320.0,0.19143096]
[1735022831240,0.05308,94324.0,94320.0,0.001]
[1735022832037,0.05508,94324.0,94320.0,0.001]
[1735022836339,0.05308,94324.0,94317.0,0.3608]
[1735022836548,0.05508,94324.0,94320.0,0.001]
[1735022836839,0.053086,94314.0,94313.0,0.13043096]
[1735022837044,0.413886,94314.0,94313.0,0.13043096]
[1735022837760,0.413886,94314.0,94313.0,0.07133096]
[1735022837943,0.413886,94314.0,94313.0,0.01233096]
[1735022838144,0.413886,94314.0,94284.0,0.27946899]
[1735022838145,0.053099,94291.0,94284.0,0.27946899]
[1735022838739,0.0361,94290.0,94284.0,0.27946899]
[1735022839277,0.053099,94291.0,94284.0,0.0374]
[1735022839543,0.3608,94292.0,94284.0,0.0374]
[1735022839738,0.002,94291.0,94284.0,0.0374]
[1735022840339,0.002,94290.0,94289.0,0.00259081]
[1735022840854,0.004,94291.0,94289.0,0.00259081]
[1735022841252,0.002,94291.0,94289.0,0.00259081]
[1735022842051,0.01044274,94301.0,94289.0,0.00259081]
[1735022842256,0.06353574,94301.0,94290.0,0.0382]
[1735022842858,0.053093,94301.0,94290.0,0.14630979]
[1735022843046,0.001,94291.0,94290.0,0.14630979]
[1735022843245,0.053093,94301.0,94290.0,0.0382]
[1735022843847,0.001,94300.0,94290.0,0.0382]
[1735022844261,0.054093,94301.0,94290.0,0.14630979]
[1735022845357,0.001,94301.0,94290.0,0.14630979]
[1735022845567,0.053094,94299.0,94290.0,0.14630979]
[1735022846059,0.053094,94299.0,94290.0,0.14730979]
[1735022846864,0.053095,94298.0,94290.0,0.14730979]
[1735022847253,0.053095,94298.0,94290.0,0.14630979]
[1735022847454,0.053095,94298.0,94290.0,0.14730979]
[1735022850564,0.053095,94298.0,94290.0,0.20040879]
[1735022852959,0.05309,94307.0,94293.0,0.053097]
[1735022853154,0.053091,94305.0,94293.0,0.053097]
[1735022853665,0.40808188,94312.0,94293.0,0.053097]
[1735022853966,0.053092,94303.0,94293.0,0.053097]
[1735022854674,0.053092,94303.0,94290.0,0.15705207]
[1735022854860,0.053092,94303.0,94296.0,0.053095]
[1735022855053,0.40752187,94312.0,94300.0,0.053093]
[1735022855259,0.053087,94311.0,94301.0,0.0784]
[1735022855460,0.053087,94311.0,94302.0,0.053092]
[1735022857272,0.053087,94311.0,94301.0,0.0784]
[1735022857273,0.053087,94311.0,94304.0,0.053091]
[1735022857660,0.053087,94311.0,94305.0,0.01592]
[1735022858463,0.053087,94311.0,94306.0,0.01592]
[1735022859377,0.00060001,94312.0,94307.0,0.3608]
[1735022859577,0.0366,94324.0,94314.0,0.053085]
[1735022859765,0.04732638,94324.0,94315.0,0.3608]
[1735022859965,0.04732638,94324.0,94319.0,0.053083]
[1735022860266,0.01072638,94324.0,94319.0,0.053083]
[1735022860469,0.05308,94325.0,94320.0,0.0377]
[1735022860867,0.3608,94333.0,94320.0,0.0377]
[1735022861068,0.413875,94333.0,94324.0,0.3608]
[1735022861469,0.3608,94333.0,94325.0,0.053079]
[1735022861977,0.053073,94338.0,94325.0,0.053079]
[1735022864271,0.053073,94337.0,94325.0,0.053079]
[1735022864477,0.053073,94336.0,94325.0,0.053079]
[1735022865781,0.413873,94336.0,94325.0,0.053079]
[1735022866277,0.3608,94336.0,94325.0,0.053079]
[1735022867975,0.053075,94334.0,94325.0,0.053079]
[1735022869183,0.053075,94334.0,94325.0,0.054079]
[1735022870166,0.04743525,94339.0,94325.0,0.001]
[1735022870370,0.04743525,94339.0,94332.0,0.3608]
[1735022870581,0.04743525,94339.0,94333.0,0.0369]
[1735022877780,0.04743525,94339.0,94334.0,0.01592]
[1735022878487,0.04743525,94339.0,94333.0,0.0369]
[1735022878881,0.04743525,94339.0,94334.0,0.01592]
[1735022880287,0.10050725,94339.0,94334.0,0.01592]
[1735022880518,0.10050725,94339.0,94333.0,0.0369]
[1735022880519,0.04743525,94339.0,94333.0,0.0369]
[1735022880699,0.053074,94336.0,94333.0,0.0369]
[1735022882089,0.053074,94335.0,94333.0,0.0369]
[1735022882693,0.053074,94335.0,94333.0,0.0379]
[1735022883596,0.053074,94335.0,94334.0,0.001]
[1735022884182,0.053074,94335.0,94333.0,0.0389]
[1735022884386,0.053074,94335.0,94333.0,0.0379]
[1735022884789,0.053074,94335.0,94334.0,0.001]
[1735022885288,0.04743525,94339.0,94333.0,0.001]
[1735022885595,0.053074,94334.0,94333.0,0.001]
[1735022886818,0.413874,94334.0,94333.0,0.001]
[1735022886987,0.053079,94326.0,94319.0,0.31734639]
[1735022887793,0.053082,94320.0,94319.0,0.31734639]
[1735022888500,0.09464461,94325.0,94315.0,0.31734639]
[1735022888699,0.053084,94317.0,94315.0,0.31734639]
[1735022889700,0.053087,94311.0,94310.0,0.31734639]
[1735022891023,0.053087,94311.0,94310.0,0.31834639]
[1735022891502,0.053087,94311.0,94310.0,0.001]
[1735022892199,0.09464461,94312.0,94310.0,0.001]
[1735022892502,0.13699349,94317.0,94310.0,0.001]
[1735022892503,0.09464461,94314.0,94310.0,0.001]
[1735022893898,0.01074507,94317.0,94310.0,0.001]
[1735022894101,0.053083,94319.0,94310.0,0.001]
[1735022895392,0.053083,94319.0,94308.0,0.3608]
[1735022895599,0.053083,94319.0,94310.0,0.001]
[1735022895815,0.0637168,94319.0,94310.0,0.001]
[1735022896705,0.0637168,94319.0,94308.0,0.3608]
[1735022897004,0.0637168,94319.0,94308.0,0.3618]
[1735022897412,0.0637168,94319.0,94310.0,0.001]
[1735022897800,0.0637168,94319.0,94308.0,0.3608]
[1735022898006,0.0637168,94319.0,94309.0,0.01592]
[1735022898508,0.0637168,94319.0,94308.0,0.3618]
[1735022898706,0.0637168,94319.0,94309.0,0.01592]
[1735022899109,0.0637168,94319.0,94309.0,0.12402979]
[1735022899402,0.0106338,94319.0,94311.0,0.25406826]
[1735022899609,0.45600462,94325.0,94311.0,0.25406826]
[1735022899798,0.05308,94324.0,94311.0,0.25406826]
[1735022900107,0.053081,94322.0,94311.0,0.25406826]
[1735022900505,0.053082,94321.0,94311.0,0.25406826]
[1735022901211,0.053082,94321.0,94313.0,0.25406826]